[Event "Chessable English Womens-ch 2022"]
[Site "Kenilwoth"]
[Date "2022.05.21"]
[Round "6.2"]
[White "Oh, Julie"]
[Black "Yao, Lan"]
[Result "0-1"]
[ECO "B23"]
[WhiteElo "1373"]
[BlackElo "2276"]
[Annotator "TA"]
[PlyCount "88"]
[EventDate "2022.05.18"]
[EventType "swiss"]
[EventCountry "ENG"]
[SourceTitle "playchess.com"]
[Source "ChessBase"]
[SourceQuality "1"]
[TimeControl "5400+30"]

{[%evp 13,88,-16,19,0,33,14,15,-6,27,-2,33,0,57,-52,-45,-35,0,-109,-118,-270,-272,-269,-272,-338,-344,-358,-360,-396,-393,-572,-558,-567,-512,-504,-502,-458,-427,-411,-304,-312,-310,-321,-293,-386,-378,-385,-388,-376,-361,-391,-384,-472,-462,-525,-466,-458,-479,-429,-386,-932,-915,-3066,-3039,-2168,-2075,-29977,-29978,-29982,-29983,-29985,-29986,-29986,-29987,-29987,-29988,-29988,-29989]} 1. e4 {[%emt 0:00:04]} c5 {[%emt 0:00:04]} 2. Nc3 {[%emt 0:00:08]} Nc6 {[%emt 0:00:03]} 3. f4 {[%emt 0:00:40]} g6 {[%emt 0:00:07]} 4. Nf3 {[%emt 0:01:23]} Bg7 {[%emt 0:00:08]} 5. Bb5 {[%emt 0:00:45]} Nd4 {[%emt 0:00:16]} 6. O-O {[%emt 0:03:17]} Nxb5 {[%emt 0:00:20]} 7. Nxb5 {[%emt 0:00:26]} Nf6 {[%emt 0:06:42]} 8. Nc3 {[%emt 0:04:58] B23: Closed Sicilian: Lines without g3.} d5 {[%emt 0:01:59]} 9. d3 {[%emt 0:05:07]} (9. e5 $5 {[%cal Re5f6]} Ne4 10. Ne2 $11) 9... O-O {[%emt 0:18:39]} 10. Qe1 {[%emt 0:04:46] The position is equal.} e6 {[%emt 0:03:19]} 11. Qh4 {[%emt 0:04:16]} dxe4 {[%emt 0:05:51]} 12. dxe4 {[%emt 0:06:01] [#]} b5 $146 {[%emt 0:12:16]} (12... b6 $11) ({Predecessor:} 12... Nh5 13. Qxd8 Rxd8 14. e5 Bf8 15. Be3 b6 16. a4 a5 17. Nd2 Ng7 18. g4 Ne8 {½-½ (44) Stanojevic,I (1886)-Grcic,V (1903) Vrbas 2015}) 13. f5 {[%emt 0:33:51]} ({But not} 13. Nxb5 Nxe4 14. Qxd8 Rxd8 $15) (13. Rd1 $1 $14 Bd7 14. e5) 13... exf5 $15 {[%emt 0:03:38]} 14. Bg5 $1 {[%emt 0:14:32]} h6 {[%emt 0:02:31]} 15. Bxh6 {[%emt 0:03:13] [#]} (15. Rad1 $1 $11 hxg5 16. Nxg5) 15... Nxe4 $1 $17 {[%emt 0:03:36] aiming for ...Qxh4.} 16. Nxe4 $2 {[%emt 0:04:06] Loses the game.} (16. Qxd8 $17 Rxd8 17. Bxg7 Kxg7 18. Nxe4 fxe4 19. Ng5) 16... Qxh4 $19 {[%emt 0:00:57]} (16... fxe4 17. Qxe4 Bf5 18. Qf4 $11) 17. Nxh4 {[%emt 0:00:24] And now Bxg7 would win.} Bxh6 {[%emt 0:02:48]} ({Don't blunder} 17... fxe4 $2 18. Bxg7 Kxg7 19. Rae1 $19) 18. Nc3 {[%emt 0:04:28]} b4 {[%emt 0:02:07]} 19. Nd5 {[%emt 0:00:43] Prevents Be3+.} Bb7 {[%emt 0:01:06]} 20. Rad1 {[%emt 0:03:38]} Rfd8 {[%emt 0:04:07]} 21. Nf6+ {[%emt 0:02:30]} (21. c4 $142 Bxd5 22. cxd5) 21... Kg7 {[%emt 0:00:26]} 22. Nd7 {[%emt 0:00:37]} Be3+ {[%emt 0:01:09]} 23. Kh1 {[%emt 0:00:27]} Bd4 {[%emt 0:00:12] This bishop pair is nice.} 24. c3 {[%emt 0:00:55]} Rxd7 {[%emt 0:00:09]} 25. cxd4 {[%emt 0:00:12]} cxd4 {[%emt 0:00:15]} 26. Nf3 {[%emt 0:00:31]} Rad8 {[%emt 0:00:55]} 27. Rd2 {[%emt 0:01:04]} Kf6 {[%emt 0:02:03]} 28. Rfd1 {[%emt 0:00:42]} d3 {[%emt 0:00:22] Threatens to win with ...Bxf3.} 29. Ne1 {[%emt 0:00:31]} Be4 {[%emt 0:00:05]} 30. Kg1 {[%emt 0:00:27]} f4 {[%emt 0:02:14]} 31. Kf2 {[%emt 0:00:20]} g5 {[%emt 0:02:42]} 32. g3 {[%emt 0:00:41]} Ke5 {[%emt 0:01:33]} 33. Rc1 {[%emt 0:00:37]} fxg3+ {[%emt 0:05:19]} 34. hxg3 {[%emt 0:00:21]} f5 {[%emt 0:00:31]} 35. Rc5+ {[%emt 0:00:42]} Rd5 {[%emt 0:01:30]} 36. Rxd5+ {[%emt 0:00:26]} (36. Rc4) 36... Rxd5 {[%emt 0:00:05]} ({Not} 36... Kxd5 37. Nxd3 Rb8 38. Nxb4+ Ke5 39. Na6 $17) 37. Nf3+ {[%emt 0:00:25]} Bxf3 {[%emt 0:00:52]} 38. Kxf3 {[%emt 0:00:06][%mdl 4096] Endgame KR-KR} Kd4 {[%emt 0:00:16] [#] Strongly threatening ...Re5.} 39. g4 {[%emt 0:00:51]} fxg4+ {[%emt 0:00:16] Black mates.} 40. Kxg4 {[%emt 0:00:14]} Ke3 {[%emt 0:00:03]} 41. Rh2 {[%emt 0:00:30]} d2 {[%emt 0:00:08]} 42. Rh3+ {[%emt 0:00:23]} Ke4 {[%emt 0:00:07]} 43. Rh1 {[%emt 0:00:58]} d1=Q+ {[%emt 0:00:06]} 44. Rxd1 {[%emt 0:00:16]} Rxd1 {[%emt 0:00:03] Weighted Error Value: White=0.92/Black=0.14 (very precise)} 0-1

[Event "Chessable English Womens-ch 2022"]
[Site "Kenilwoth"]
[Date "2022.05.21"]
[Round "6.3"]
[White "Pert, Nina"]
[Black "Subramanian, Anusha"]
[Result "1/2-1/2"]
[ECO "C10"]
[WhiteElo "1620"]
[BlackElo "1671"]
[Annotator "NA RC COMBH"]
[PlyCount "159"]
[EventDate "2022.05.18"]
[EventType "swiss"]
[EventCountry "ENG"]
[SourceTitle "playchess.com"]
[Source "ChessBase"]
[SourceQuality "1"]
[TimeControl "5400+30"]

1. e4 {[%emt 0:00:03]} e6 {[%emt 0:00:04]} 2. d4 {[%emt 0:00:09]} d5 {[%emt 0:00:05]} 3. Nd2 {[%emt 0:00:12]} dxe4 {[%emt 0:00:07]} 4. Nxe4 {[%emt 0:00:13]} Nd7 {[%emt 0:00:04]} 5. Nf3 {[%emt 0:00:45]} Ngf6 {[%emt 0:00:06]} 6. Ng3 {[%emt 0:00:44]} c5 {[%emt 0:00:27]} 7. c3 {[%emt 0:02:29]} cxd4 {[%emt 0:02:12]} 8. Nxd4 {[%emt 0:01:07]} Bc5 {[%emt 0:01:12]} 9. Nb3 {[%emt 0:04:15]} Be7 {[%emt 0:01:22]} 10. Be2 {[%emt 0:02:49]} O-O {[%emt 0:01:22]} 11. O-O {[%emt 0:01:04]} Qc7 {[%emt 0:03:15]} 12. Qc2 {[%emt 0:01:14]} b6 {[%emt 0:02:30]} 13. Bg5 {[%emt 0:06:24]} Bb7 {[%emt 0:04:59]} 14. Rad1 {[%emt 0:02:15]} h6 {[%emt 0:04:02]} 15. Bd2 {[%emt 0:01:50]} Nc5 {[%emt 0:03:04]} 16. Nxc5 {[%emt 0:01:52]} Bxc5 {[%emt 0:00:30]} 17. c4 {[%emt 0:10:13]} Bd6 {[%emt 0:09:17]} 18. Bd3 {[%emt 0:07:25]} Qc6 {[%emt 0:10:31]} 19. f3 {[%emt 0:00:50]} Qc7 {[%emt 0:03:53]} 20. Be1 {[%emt 0:02:59]} Rac8 {[%emt 0:01:06]} 21. Qe2 {[%emt 0:01:26]} Rfd8 {[%emt 0:02:32]} 22. Kh1 {[%emt 0:02:29]} Bf4 {[%emt 0:04:17]} 23. b3 {[%emt 0:05:31]} Rd7 {[%emt 0:05:08]} 24. Bb1 {[%emt 0:03:14]} Qe5 {[%emt 0:07:51]} 25. Rxd7 {[%emt 0:02:55]} Nxd7 {[%emt 0:01:22]} 26. Qc2 {[%emt 0:03:22]} g6 {[%emt 0:06:03]} 27. Bc3 {[%emt 0:00:47]} Qc7 {[%emt 0:00:51]} 28. Ne2 {[%emt 0:03:11]} Be5 {[%emt 0:02:24]} 29. Nd4 {[%emt 0:01:06]} Bxd4 {[%emt 0:03:50]} 30. Bxd4 {[%emt 0:00:06]} b5 {[%emt 0:03:02]} 31. c5 {[%emt 0:08:01]} Qf4 {[%emt 0:02:44]} 32. Qf2 {[%emt 0:01:21]} b4 {[%emt 0:04:16]} 33. Be3 {[%emt 0:04:06]} Qe5 {[%emt 0:01:53]} 34. Rc1 {[%emt 0:00:58]} a5 {[%emt 0:02:13]} 35. Bd3 {[%emt 0:01:28]} Nf6 {[%emt 0:02:35]} 36. Bd4 {[%emt 0:00:36]} Qf4 {[%emt 0:00:41]} 37. Be3 {[%emt 0:01:11]} Qe5 {[%emt 0:00:33]} 38. Qd2 {[%emt 0:04:21]} Nd5 {[%emt 0:01:38]} 39. Be4 {[%emt 0:00:40]} f5 {[%emt 0:01:00]} 40. Bf4 {[%emt 0:01:23]} Nxf4 {[%emt 0:01:47]} 41. Bxb7 {[%emt 0:00:07]} Rc7 {[%emt 0:00:28]} 42. Re1 {[%emt 0:00:35]} Qg7 {[%emt 0:02:11]} 43. Qxf4 {[%emt 0:00:43]} Rxb7 {[%emt 0:00:15]} 44. c6 {[%emt 0:00:36]} Rc7 {[%emt 0:00:31]} 45. Rc1 {[%emt 0:01:39]} e5 {[%emt 0:01:45]} 46. Qc4+ {[%emt 0:00:16]} Qf7 {[%emt 0:00:33]} 47. Qc5 {[%emt 0:00:24]} Qe6 {[%emt 0:00:37]} 48. Qxa5 {[%emt 0:00:25]} Qd6 {[%emt 0:00:14]} 49. h3 {[%emt 0:01:05]} e4 {[%emt 0:00:28]} 50. fxe4 {[%emt 0:00:36]} fxe4 {[%emt 0:00:08]} 51. Qb6 {[%emt 0:01:56]} Kh7 {[%emt 0:01:10]} 52. Qc5 {[%emt 0:02:48]} Qd2 {[%emt 0:00:49]} 53. Qc2 {[%emt 0:02:04]} e3 {[%emt 0:00:28]} 54. Kg1 {[%emt 0:00:59]} Kg7 {[%emt 0:00:32]} 55. Qxd2 {[%emt 0:01:42]} exd2 {[%emt 0:00:04]} 56. Rd1 {[%emt 0:00:04]} Rxc6 {[%emt 0:00:04]} 57. Rxd2 {[%emt 0:00:05]} Kf6 {[%emt 0:00:25]} 58. Kf2 {[%emt 0:00:26]} Ke5 {[%emt 0:00:13]} 59. Ke2 {[%emt 0:01:51]} Rc3 {[%emt 0:00:24]} 60. Kd1 {[%emt 0:00:28]} Ke4 {[%emt 0:00:47]} 61. Rf2 {[%emt 0:00:55]} Ke5 {[%emt 0:00:49]} 62. Kd2 {[%emt 0:00:24]} Ke4 {[%emt 0:00:33]} 63. h4 {[%emt 0:01:06]} h5 {[%emt 0:00:40]} 64. Rf3 {[%emt 0:01:17]} Rxf3 {[%emt 0:00:44]} 65. gxf3+ {[%emt 0:00:02]} Kxf3 {[%emt 0:00:07]} 66. a4 {[%emt 0:00:07]} bxa3 {[%emt 0:00:15]} 67. Kc2 {[%emt 0:00:07]} Kg4 {[%emt 0:00:29]} 68. b4 {[%emt 0:00:05]} g5 {[%emt 0:00:32]} 69. hxg5 {[%emt 0:00:21]} Kxg5 {[%emt 0:00:08]} 70. b5 {[%emt 0:00:11]} h4 {[%emt 0:00:04]} 71. b6 {[%emt 0:00:06]} h3 {[%emt 0:00:03]} 72. b7 {[%emt 0:00:06]} h2 {[%emt 0:00:23]} 73. b8=Q {[%emt 0:06:20]} h1=Q {[%emt 0:00:13]} 74. Qg8+ {[%emt 0:00:00]} Kf4 {[%emt 0:00:35]} 75. Qf7+ {[%emt 0:00:00]} Ke5 {[%emt 0:00:30]} 76. Qe7+ {[%emt 0:00:00]} Kd4 {[%emt 0:00:42]} 77. Qa7+ {[%emt 0:00:00]} Ke5 {[%emt 0:00:16]} 78. Qg7+ {[%emt 0:00:00]} Kd6 {[%emt 0:00:22]} 79. Qg6+ {[%emt 0:00:00]} Ke5 {[%emt 0:00:21]} 80. Qg7+ {[%emt 0:00:00]} 1/2-1/2

[Event "Chessable English Womens-ch 2022"]
[Site "Kenilwoth"]
[Date "2022.05.21"]
[Round "6.4"]
[White "Catabay, Mae Katelyn Rose"]
[Black "Mohan, Meghana"]
[Result "1-0"]
[ECO "B80"]
[WhiteElo "1321"]
[BlackElo "1613"]
[Annotator "NA COMBH"]
[PlyCount "81"]
[EventDate "2022.05.18"]
[EventType "swiss"]
[EventCountry "ENG"]
[SourceTitle "playchess.com"]
[Source "ChessBase"]
[SourceQuality "1"]
[TimeControl "5400+30"]

1. e4 {[%emt 0:00:04]} c5 {[%emt 0:00:11]} 2. Nf3 {[%emt 0:00:12]} d6 {[%emt 0:00:14]} 3. d4 {[%emt 0:00:21]} cxd4 {[%emt 0:00:07]} 4. Nxd4 {[%emt 0:00:41]} Nf6 {[%emt 0:00:11]} 5. Nc3 {[%emt 0:01:26]} a6 {[%emt 0:00:47]} 6. f3 {[%emt 0:03:43]} e6 {[%emt 0:02:01]} 7. Be3 {[%emt 0:05:46]} Be7 {[%emt 0:01:44]} 8. Qd2 {[%emt 0:05:21]} Bd7 {[%emt 0:03:21]} 9. Be2 {[%emt 0:01:32]} Nc6 {[%emt 0:02:57]} 10. O-O {[%emt 0:05:54]} Ne5 {[%emt 0:04:52]} 11. Nb3 {[%emt 0:08:51]} Rc8 {[%emt 0:01:50]} 12. Bd4 {[%emt 0:09:00]} Nc4 {[%emt 0:06:47]} 13. Bxc4 {[%emt 0:00:59]} Rxc4 {[%emt 0:00:08]} 14. Qf2 {[%emt 0:01:51]} Rc8 {[%emt 0:02:35]} 15. Bb6 {[%emt 0:00:26]} Rc7 {[%emt 0:01:03]} 16. Bxc7 {[%emt 0:01:26]} Qxc7 {[%emt 0:00:19]} 17. Rad1 {[%emt 0:00:56]} O-O {[%emt 0:01:38]} 18. Rd2 {[%emt 0:05:50]} Bc6 {[%emt 0:01:09]} 19. Rfd1 {[%emt 0:02:10]} d5 {[%emt 0:02:49]} 20. exd5 {[%emt 0:04:57]} Nxd5 {[%emt 0:02:24]} 21. Nxd5 {[%emt 0:00:47]} Bxd5 {[%emt 0:00:33]} 22. Kh1 {[%emt 0:03:16]} Bd6 {[%emt 0:00:52]} 23. g3 {[%emt 0:08:41]} Qc6 {[%emt 0:02:31]} 24. Nd4 {[%emt 0:01:10]} Qc8 {[%emt 0:04:17]} 25. c3 {[%emt 0:07:26]} b5 {[%emt 0:01:52]} 26. Rc2 {[%emt 0:06:46]} Qa8 {[%emt 0:02:35]} 27. Kg2 {[%emt 0:03:01]} Rc8 {[%emt 0:02:18]} 28. b3 {[%emt 0:02:12]} Bc5 {[%emt 0:00:53]} 29. c4 {[%emt 0:01:24]} e5 {[%emt 0:03:48]} 30. cxd5 {[%emt 0:00:42]} Bxd4 {[%emt 0:00:29]} 31. Rxc8+ {[%emt 0:00:17]} Qxc8 {[%emt 0:00:07]} 32. Qd2 {[%emt 0:00:43]} Qd8 {[%emt 0:00:56]} 33. Qc2 {[%emt 0:00:37]} g6 {[%emt 0:00:21]} 34. Qc6 {[%emt 0:01:49]} Qa5 {[%emt 0:00:31]} 35. d6 {[%emt 0:01:24]} Qxa2+ {[%emt 0:00:27]} 36. Kh3 {[%emt 0:00:23]} Qxb3 {[%emt 0:01:08]} 37. d7 {[%emt 0:00:53]} Qxd1 {[%emt 0:01:22]} 38. d8=Q+ {[%emt 0:00:12]} Kg7 {[%emt 0:00:16]} 39. Qcf6+ {[%emt 0:00:08]} Kh6 {[%emt 0:00:21]} 40. Qf8+ {[%emt 0:00:11]} Kh5 {[%emt 0:00:24]} 41. Qh4# {[%emt 0:00:11]} 1-0

[Event "Chessable English Womens-ch 2022"]
[Site "Kenilwoth"]
[Date "2022.05.21"]
[Round "6.5"]
[White "Sengenberger, Sara"]
[Black "Dicen, Elis Denele"]
[Result "0-1"]
[ECO "C01"]
[WhiteElo "1435"]
[BlackElo "1635"]
[Annotator "NA RC COMBH"]
[PlyCount "82"]
[EventDate "2022.05.18"]
[EventType "swiss"]
[EventCountry "ENG"]
[SourceTitle "playchess.com"]
[Source "ChessBase"]
[SourceQuality "1"]
[TimeControl "5400+30"]

1. e4 {[%emt 0:00:08]} e6 {[%emt 0:00:09]} 2. d4 {[%emt 0:00:10]} d5 {[%emt 0:00:14]} 3. exd5 {[%emt 0:00:09]} exd5 {[%emt 0:00:14]} 4. Bd3 {[%emt 0:00:18]} Nf6 {[%emt 0:00:28]} 5. Nf3 {[%emt 0:00:20]} c5 {[%emt 0:00:37]} 6. dxc5 {[%emt 0:00:40]} Bxc5 {[%emt 0:00:22]} 7. h3 {[%emt 0:01:50]} O-O {[%emt 0:00:42]} 8. O-O {[%emt 0:00:34]} Nc6 {[%emt 0:00:55]} 9. b3 {[%emt 0:03:11]} Be6 {[%emt 0:01:36]} 10. Bb2 {[%emt 0:00:53]} Rc8 {[%emt 0:01:31]} 11. Nbd2 {[%emt 0:04:10]} h6 {[%emt 0:02:17]} 12. Rc1 {[%emt 0:02:42]} Nb4 {[%emt 0:02:57]} 13. a3 {[%emt 0:03:52]} Nxd3 {[%emt 0:00:58]} 14. cxd3 {[%emt 0:00:24]} Bd6 {[%emt 0:01:13]} 15. Nd4 {[%emt 0:03:05]} Bd7 {[%emt 0:02:10]} 16. N2f3 {[%emt 0:00:37]} Rxc1 {[%emt 0:04:33]} 17. Qxc1 {[%emt 0:00:09]} Qb6 {[%emt 0:02:25]} 18. b4 {[%emt 0:00:50]} Bb8 {[%emt 0:01:14]} 19. Re1 {[%emt 0:01:35]} a6 {[%emt 0:06:28]} 20. Ne5 {[%emt 0:07:51]} Qd6 {[%emt 0:03:23]} 21. Ndf3 {[%emt 0:02:34]} Bf5 {[%emt 0:03:16]} 22. Bd4 {[%emt 0:09:01]} Rc8 {[%emt 0:03:55]} 23. Qd2 {[%emt 0:02:17]} Qd8 {[%emt 0:02:37]} 24. Rc1 {[%emt 0:04:31]} Rxc1+ {[%emt 0:03:05]} 25. Qxc1 {[%emt 0:00:08]} Be6 {[%emt 0:04:38]} 26. Qc3 {[%emt 0:01:34]} Bd6 {[%emt 0:02:45]} 27. Bc5 {[%emt 0:02:22]} Ne8 {[%emt 0:02:06]} 28. Bxd6 {[%emt 0:00:34]} Nxd6 {[%emt 0:00:45]} 29. Nd4 {[%emt 0:01:00]} Qf6 {[%emt 0:05:02]} 30. Nxe6 {[%emt 0:03:52]} Qxe6 {[%emt 0:00:29]} 31. Nf3 {[%emt 0:02:03]} Nb5 {[%emt 0:02:15]} 32. Qb2 {[%emt 0:02:23]} d4 {[%emt 0:05:57]} 33. Kf1 {[%emt 0:02:44]} Qd5 {[%emt 0:01:43]} 34. Ng1 {[%emt 0:03:36]} Qf5 {[%emt 0:01:54]} 35. Qb3 {[%emt 0:02:09]} Qf4 {[%emt 0:04:23]} 36. Ne2 {[%emt 0:01:18]} Qd2 {[%emt 0:00:55]} 37. g3 {[%emt 0:08:53]} Nc3 {[%emt 0:05:43]} 38. Nxc3 {[%emt 0:02:02]} Qxd3+ {[%emt 0:00:29]} 39. Ke1 {[%emt 0:01:13]} dxc3 {[%emt 0:00:18]} 40. Qd1 {[%emt 0:00:32]} Qe4+ {[%emt 0:01:03]} 41. Kf1 {[%emt 0:01:09]} c2 {[%emt 0:00:55]} 0-1

[Event "Chessable English Womens-ch 2022"]
[Site "Kenilwoth"]
[Date "2022.05.22"]
[Round "7.1"]
[White "Dicen, Elis Denele"]
[Black "Gamal, Alaa"]
[Result "1-0"]
[ECO "D00"]
[WhiteElo "1635"]
[BlackElo "1651"]
[Annotator "NA RC COMBH"]
[PlyCount "131"]
[EventDate "2022.05.18"]
[EventType "swiss"]
[EventCountry "ENG"]
[SourceTitle "playchess.com"]
[Source "ChessBase"]
[SourceQuality "1"]
[TimeControl "5400+30"]

1. d4 {[%emt 0:00:03]} g6 {[%emt 0:03:42]} 2. Nc3 {[%emt 0:00:11]} d5 {[%emt 0:00:58]} 3. Bf4 {[%emt 0:01:30]} a6 {[%emt 0:03:47]} 4. e3 {[%emt 0:01:30]} Nf6 {[%emt 0:00:34]} 5. Nf3 {[%emt 0:02:19]} Bg7 {[%emt 0:00:12]} 6. Be2 {[%emt 0:02:00]} Nh5 {[%emt 0:03:52]} 7. Be5 {[%emt 0:02:07]} f6 {[%emt 0:00:38]} 8. Bg3 {[%emt 0:00:22]} Be6 {[%emt 0:02:57]} 9. Qd2 {[%emt 0:01:45]} O-O {[%emt 0:04:46]} 10. O-O-O {[%emt 0:00:58]} Nd7 {[%emt 0:03:07]} 11. Nh4 {[%emt 0:03:12]} Nxg3 {[%emt 0:00:25]} 12. hxg3 {[%emt 0:00:14]} c5 {[%emt 0:00:18]} 13. f4 {[%emt 0:05:21]} f5 {[%emt 0:03:47]} 14. Nf3 {[%emt 0:01:26]} h6 {[%emt 0:00:43]} 15. Ne5 {[%emt 0:05:07]} cxd4 {[%emt 0:01:22]} 16. exd4 {[%emt 0:00:48]} Rf6 {[%emt 0:07:49]} 17. g4 {[%emt 0:03:49]} fxg4 {[%emt 0:04:58]} 18. Bxg4 {[%emt 0:04:51]} Nb6 {[%emt 0:00:20]} 19. Bxe6+ {[%emt 0:02:34]} Rxe6 {[%emt 0:00:06]} 20. g4 {[%emt 0:02:21]} Nc4 {[%emt 0:01:21]} 21. Qd3 {[%emt 0:12:28]} Rc8 {[%emt 0:10:18]} 22. g5 {[%emt 0:15:04]} hxg5 {[%emt 0:06:20]} 23. Qh3 {[%emt 0:04:35]} Qd6 {[%emt 0:16:52]} 24. Qh7+ {[%emt 0:05:07]} Kf8 {[%emt 0:00:01]} 25. Rdf1 {[%emt 0:09:18]} gxf4 {[%emt 0:03:04]} 26. Rxf4+ {[%emt 0:01:05]} Rf6 {[%emt 0:00:02]} 27. Rxf6+ {[%emt 0:02:09]} exf6 {[%emt 0:00:04]} 28. Nxg6+ {[%emt 0:02:11]} Kf7 {[%emt 0:00:33]} 29. Qh5 {[%emt 0:01:00]} Kg8 {[%emt 0:05:12]} 30. Nxd5 {[%emt 0:02:41]} Re8 {[%emt 0:00:36]} 31. Ngf4 {[%emt 0:01:58]} Rc8 {[%emt 0:04:31]} 32. Qh7+ {[%emt 0:00:50]} Kf8 {[%emt 0:00:15]} 33. Qf5 {[%emt 0:00:39]} Re8 {[%emt 0:00:32]} 34. Rg1 {[%emt 0:01:27]} Ne3 {[%emt 0:01:22]} 35. Nxe3 {[%emt 0:00:52]} Rxe3 {[%emt 0:00:02]} 36. Qc8+ {[%emt 0:00:58]} Re8 {[%emt 0:00:50]} 37. Ng6+ {[%emt 0:00:22]} Kf7 {[%emt 0:01:20]} 38. Qxb7+ {[%emt 0:00:15]} Kg8 {[%emt 0:00:24]} 39. Ne5 {[%emt 0:01:15]} Re7 {[%emt 0:02:49]} 40. Qc8+ {[%emt 0:00:31]} Kh7 {[%emt 0:00:03]} 41. Rh1+ {[%emt 0:00:21]} Bh6+ {[%emt 0:00:01]} 42. Rxh6+ {[%emt 0:01:18]} Kxh6 {[%emt 0:00:00]} 43. Qh3+ {[%emt 0:00:34]} Kg7 {[%emt 0:00:00]} 44. Qg4+ {[%emt 0:00:29]} Kf8 {[%emt 0:00:23]} 45. Ng6+ {[%emt 0:00:18]} Kf7 {[%emt 0:00:01]} 46. Nxe7 {[%emt 0:00:15]} Kxe7 {[%emt 0:00:15]} 47. Qe4+ {[%emt 0:00:16]} Kf7 {[%emt 0:00:10]} 48. c3 {[%emt 0:00:39]} Qb6 {[%emt 0:00:43]} 49. Qd5+ {[%emt 0:00:20]} Kg7 {[%emt 0:00:12]} 50. b3 {[%emt 0:00:27]} Qc7 {[%emt 0:00:13]} 51. Kb2 {[%emt 0:00:33]} Qh2+ {[%emt 0:00:14]} 52. Ka3 {[%emt 0:00:10]} Qc2 {[%emt 0:00:22]} 53. Qd7+ {[%emt 0:00:35]} Kg6 {[%emt 0:00:13]} 54. Qg4+ {[%emt 0:00:20]} Kh6 {[%emt 0:00:44]} 55. Qf3 {[%emt 0:00:22]} Kg5 {[%emt 0:00:31]} 56. d5 {[%emt 0:00:30]} a5 {[%emt 0:01:02]} 57. Qe3+ {[%emt 0:00:25]} Kg4 {[%emt 0:00:17]} 58. d6 {[%emt 0:00:38]} Qf5 {[%emt 0:01:00]} 59. Qd4+ {[%emt 0:00:25]} Kg3 {[%emt 0:00:03]} 60. d7 {[%emt 0:00:32]} Qb1 {[%emt 0:01:15]} 61. d8=Q {[%emt 0:04:20]} Qc1+ {[%emt 0:00:04]} 62. Ka4 {[%emt 0:00:00]} Qg5 {[%emt 0:00:28]} 63. Qg1+ {[%emt 0:00:00]} Kh4 {[%emt 0:00:04]} 64. Qh8+ {[%emt 0:00:00]} Qh5 {[%emt 0:00:04]} 65. Qh2+ {[%emt 0:00:00]} Kg4 {[%emt 0:00:04]} 66. Q8xh5# {[%emt 0:00:00]} 1-0